bitfinex/quotes_BTCUSD_20260310
["timestamp","ask_amount","ask_price","bid_price","bid_amount"]
[1773172740127,0.00518072,70094.0,70078.0,0.00148]
[1773172740540,0.03,70092.0,70080.0,0.05437244]
[1773172740692,0.01960855,70093.0,70079.0,0.07134805]
[1773172741436,0.00185483,70094.0,70080.0,0.05437244]
[1773172741970,0.00037483,70094.0,70080.0,0.05437244]
[1773172742129,0.00037483,70094.0,70080.0,0.00148]
[1773172742130,0.03,70090.0,70080.0,0.00148]
[1773172742335,0.03,70090.0,70063.0,0.07136434]
[1773172742336,0.03,70084.0,70063.0,0.07136434]
[1773172742518,0.03,70084.0,70061.0,0.07136434]
[1773172742519,0.04812855,70084.0,70061.0,0.07136434]
[1773172742726,0.04812855,70084.0,70064.0,0.00148]
[1773172743132,0.04812855,70084.0,70065.0,0.00148]
[1773172743327,0.00037483,70094.0,70070.0,0.05437244]
[1773172743642,0.01812855,70093.0,70070.0,0.05437244]
[1773172744301,0.05437244,70090.0,70060.0,0.12573678]
[1773172744478,0.04812855,70086.0,70062.0,0.07136536]
[1773172744684,0.00148,70085.0,70062.0,0.07136536]
[1773172745430,0.01812855,70076.0,70057.0,0.07136968]
[1773172745636,0.03,70071.0,70058.0,0.00148]
[1773172745975,0.03,70071.0,70062.0,0.001]
[1773172746170,0.00148,70076.0,70060.0,0.05437244]
[1773172746371,0.01812855,70075.0,70060.0,0.00148]
[1773172746575,0.03,70074.0,70061.0,0.07136638]
[1773172746912,0.0303746,70074.0,70061.0,0.07136638]
[1773172747109,0.03,70072.0,70061.0,0.07136638]
[1773172748232,0.03,70072.0,70060.0,0.07284638]
[1773172748456,0.03,70069.0,70060.0,0.00148]
[1773172748732,0.03,70067.0,70060.0,0.0728473]
[1773172749604,0.03,70072.0,70060.0,0.0728473]
[1773172749804,0.04812855,70072.0,70060.0,0.0728473]
[1773172750036,0.03,70070.0,70060.0,0.0728473]
[1773172750453,0.03,70070.0,70060.0,0.0743473]
[1773172751983,0.01812855,70071.0,70060.0,0.07434674]
[1773172751984,0.03,70071.0,70060.0,0.07434674]
[1773172752175,0.04812855,70071.0,70060.0,0.07434674]
[1773172752333,0.03,70069.0,70060.0,0.00298]
[1773172752527,0.03,70069.0,70060.0,0.07434733]
[1773172752767,0.04812855,70069.0,70060.0,0.07434733]
[1773172753171,0.03,70069.0,70060.0,0.07434733]
[1773172753376,0.03,70071.0,70060.0,0.07434733]
[1773172753780,0.03,70071.0,70060.0,0.07286733]
[1773172753972,0.03,70071.0,70061.0,0.00148]
[1773172754490,0.0003746,70074.0,70061.0,0.00148]
[1773172754686,0.03,70072.0,70062.0,0.07136536]
[1773172754851,0.0003746,70074.0,70062.0,0.07136536]
[1773172755389,0.00148,70078.0,70062.0,0.07136536]
[1773172755687,0.03159233,70078.0,70062.0,0.07136536]
[1773172756386,0.03,70074.0,70062.0,0.07136536]
[1773172756753,0.00011233,70078.0,70062.0,0.07136536]
[1773172756949,0.01812855,70077.0,70062.0,0.07136536]
[1773172757452,0.03,70072.0,70062.0,0.07136536]
[1773172758302,0.03,70068.0,70060.0,0.07286697]
[1773172758462,0.03,70068.0,70062.0,0.5]
[1773172759477,0.01812855,70071.0,70062.0,0.5]
[1773172759666,0.03,70070.0,70062.0,0.42863464]
[1773172760319,0.03,70068.0,70062.0,0.42863464]
[1773172760518,0.04812855,70064.0,70062.0,0.42863464]
[1773172760695,0.04812855,70064.0,70062.0,0.28886795]
[1773172761015,0.03,70064.0,70062.0,0.0002]
[1773172761226,0.00148,70075.0,70054.0,0.0002]
[1773172761227,0.03,70060.0,70054.0,0.0002]
[1773172761397,0.03,70060.0,70050.0,0.00023]
[1773172761398,0.03,70056.0,70047.0,0.0002]
[1773172761597,0.04812855,70054.0,70047.0,0.0002]
[1773172761985,0.03,70054.0,70047.0,0.0002]
[1773172762380,0.01812855,70058.0,70047.0,0.0002]
[1773172762580,0.03,70055.0,70047.0,0.0005746]
[1773172762788,0.03,70053.0,70047.0,0.0005746]
[1773172763192,0.04812855,70053.0,70047.0,0.0005746]
[1773172763403,0.03,70051.0,70047.0,0.0005746]
[1773172763597,0.04812855,70051.0,70047.0,0.0005746]
[1773172764254,0.00148,70063.0,70047.0,0.07195439]
[1773172764556,0.03,70057.0,70047.0,0.0005746]
[1773172764703,0.03,70055.0,70047.0,0.07195511]
[1773172765052,0.03906428,70053.0,70047.0,0.0005746]
[1773172765818,0.03,70053.0,70047.0,0.07195494]
[1773172766388,0.00906428,70066.0,70047.0,0.07195494]
[1773172766950,0.00906428,70066.0,70047.0,0.0005746]
[1773172767155,0.03,70065.0,70048.0,0.00148]
[1773172767354,0.03,70065.0,70048.0,0.07285933]
[1773172767355,0.03,70059.0,70048.0,0.07285933]
[1773172767556,0.03906428,70055.0,70048.0,0.00148]
[1773172767761,0.03906428,70055.0,70048.0,0.07285897]
[1773172769058,0.00906428,70065.0,70048.0,0.07285897]
[1773172769330,0.07136312,70065.0,70048.0,0.07285897]
[1773172769502,0.00906428,70064.0,70048.0,0.07285897]
[1773172769860,0.00906428,70059.0,70049.0,0.00148]
[1773172770055,0.03,70058.0,70049.0,0.00148]
[1773172770316,0.07135349,70074.0,70049.0,0.00148]
[1773172770473,0.01054428,70073.0,70049.0,0.00148]
[1773172770670,0.05435431,70070.0,70049.0,0.00148]
[1773172770878,0.00906428,70069.0,70049.0,0.00148]
[1773172771074,0.03,70068.0,70049.0,0.00148]
[1773172771284,0.03,70064.0,70050.0,0.00148]
[1773172771483,0.03,70060.0,70050.0,0.00148]
[1773172771692,0.00906428,70065.0,70050.0,0.00148]
[1773172771904,0.00906428,70065.0,70051.0,0.03515163]
[1773172772594,0.03,70064.0,70051.0,0.03515163]
[1773172773296,0.03906428,70062.0,70052.0,0.07137554]
[1773172773689,0.03,70060.0,70048.0,0.07137962]
[1773172773955,0.00906428,70053.0,70047.0,0.0033746]
[1773172774153,0.03906428,70052.0,70047.0,0.07475481]
[1773172774620,0.00463856,70058.0,70047.0,0.07475481]
[1773172775632,0.03,70058.0,70047.0,0.07475481]
[1773172775835,0.00463856,70057.0,70047.0,0.07475481]
[1773172776732,0.03463856,70057.0,70047.0,0.07475481]
[1773172777871,0.03,70056.0,70047.0,0.07475481]
[1773172778823,0.03,70055.0,70047.0,0.07475481]
[1773172779430,0.00148,70061.0,70047.0,0.07475481]
[1773172780187,0.005,70060.0,70047.0,0.07475481]
[1773172780476,0.005,70058.0,70044.0,0.00168]
[1773172781184,0.005,70058.0,70044.0,0.07306286]
[1773172781981,0.03,70056.0,70044.0,0.00168]
[1773172782184,0.005,70055.0,70041.0,0.0002]
[1773172782381,0.005,70053.0,70041.0,0.0002963]
[1773172783596,0.00148,70054.0,70041.0,0.07168303]
[1773172784002,0.005,70057.0,70041.0,0.07168303]
[1773172784202,0.00648,70063.0,70041.0,0.07168303]
[1773172784403,0.005,70064.0,70041.0,0.07168303]
[1773172785230,0.03148,70065.0,70041.0,0.07458303]
[1773172785635,0.005,70064.0,70041.0,0.07458303]
[1773172786502,0.03,70062.0,70041.0,0.07458303]
[1773172787655,0.005,70067.0,70041.0,0.07458303]
[1773172787656,0.10135471,70073.0,70043.0,0.00465306]
[1773172787957,0.03022001,70073.0,70052.0,0.00465306]
[1773172788116,0.03022001,70073.0,70054.0,0.00465306]
[1773172788517,0.03,70072.0,70055.0,0.07137249]
[1773172788736,0.03,70072.0,70056.0,0.00465306]
[1773172789569,0.00022001,70073.0,70056.0,0.00465306]
[1773172789922,0.00490356,70099.0,70068.0,0.00562]
[1773172790137,0.24461052,70100.0,70069.0,0.00148]
[1773172790138,0.00490356,70089.0,70069.0,0.00148]
[1773172790719,0.005,70086.0,70067.0,0.00148]
[1773172791206,0.00537483,70086.0,70067.0,0.00148]
[1773172792028,0.005,70085.0,70067.0,0.00148]
[1773172793207,0.005,70082.0,70051.0,0.03736495]
[1773172793410,0.005,70078.0,70052.0,0.07285463]
[1773172794050,0.005,70078.0,70052.0,0.07137463]
[1773172794223,0.005,70078.0,70053.0,0.00148]
[1773172794441,0.005,70078.0,70052.0,0.07137463]
[1773172794442,0.005,70078.0,70054.0,0.00148]
[1773172794954,0.006,70078.0,70054.0,0.00148]
[1773172795157,0.005,70075.0,70055.0,0.07137249]
[1773172795367,0.16305327,70070.0,70054.0,0.001]
[1773172795571,0.005,70068.0,70054.0,0.001]
[1773172796454,0.005,70062.0,70047.0,0.0002]
[1773172796653,0.005,70060.0,70047.0,0.0002]
[1773172797014,0.005,70060.0,70047.0,0.07158034]
[1773172797221,0.005,70070.0,70050.0,0.00023]
[1773172797412,0.00490356,70075.0,70050.0,0.00492887]
[1773172797613,0.00490356,70069.0,70052.0,0.00469887]
[1773172797822,0.00490356,70069.0,70053.0,0.00148]
[1773172798355,0.00490356,70069.0,70051.0,0.00148]
[1773172799357,0.00022001,70085.0,70059.0,0.16305327]
[1773172799586,0.00490356,70079.0,70060.0,0.00148]
[1773172799882,0.00490356,70078.0,70053.0,0.03631105]
[1773172800043,0.00490356,70078.0,70054.0,0.00148]
[1773172800244,0.00490356,70078.0,70049.0,0.07137554]
[1773172800245,0.01633539,70079.0,70028.0,8.64e-05]
[1773172800247,0.00562,70068.0,70028.0,8.64e-05]
[1773172800494,0.03,70049.0,70029.0,0.03631105]
[1773172800676,0.03,70049.0,70029.0,0.03775105]
[1773172801027,0.00562,70068.0,70026.0,0.07160103]
[1773172801028,0.00499999,70038.0,70026.0,0.0002]
[1773172801378,0.00148,70045.0,70023.0,0.03631105]
[1773172801582,0.00499999,70044.0,70023.0,0.03631105]
[1773172801799,0.00499999,70044.0,70023.0,0.03668565]
[1773172802601,0.03,70046.0,70023.0,0.03668565]
[1773172802778,0.00499999,70045.0,70023.0,0.03668565]
[1773172803311,0.00499999,70045.0,70028.0,0.0002]
[1773172803516,0.00499999,70045.0,70029.0,0.07283899]
[1773172803668,0.00499999,70043.0,70029.0,0.07139899]
[1773172804007,0.00499999,70043.0,70030.0,0.00144]
[1773172804567,0.03499999,70043.0,70030.0,0.00144]
[1773172805400,0.00499999,70042.0,70031.0,0.00144]
[1773172805604,0.00499999,70042.0,70032.0,0.07139593]
[1773172806211,0.00499999,70042.0,70033.0,0.00148]
[1773172806410,0.00499999,70044.0,70033.0,0.00148]
[1773172806629,0.03499999,70044.0,70033.0,0.00148]
[1773172806825,0.00499999,70043.0,70033.0,0.00148]
[1773172807027,0.1228,70086.0,70033.0,0.00148]
[1773172807231,0.00490356,70058.0,70033.0,0.00148]
[1773172808172,0.00490356,70055.0,70033.0,0.07287411]
[1773172808344,0.00490356,70053.0,70033.0,0.07287411]
[1773172809316,0.03,70055.0,70034.0,0.00469887]
[1773172809551,0.03,70055.0,70035.0,0.00469887]
[1773172810151,0.03,70055.0,70036.0,0.07139185]
[1773172810355,0.03,70054.0,70037.0,0.00469887]
[1773172810552,0.00490356,70058.0,70037.0,0.00469887]
[1773172811002,0.07158197,70063.0,70037.0,0.00469887]
[1773172811210,0.0002168,70063.0,70040.0,0.16305327]
[1773172811499,0.0302168,70063.0,70041.0,0.00148]
[1773172811729,0.00562,70068.0,70041.0,0.00148]
[1773172811730,0.00562,70068.0,70042.0,0.00469887]
[1773172812278,0.00562,70068.0,70043.0,0.07138472]
[1773172812469,0.00562,70068.0,70050.0,0.16275854]
[1773172812673,0.0004468,70075.0,70054.0,0.00469887]
[1773172812674,0.00023,70075.0,70054.0,0.00469887]
[1773172813641,0.00034231,70075.0,70054.0,0.00469887]
[1773172814471,0.00034231,70075.0,70056.0,0.00469887]
[1773172816121,0.00501936,70088.0,70062.0,0.229483]
[1773172816321,0.00501936,70088.0,70066.0,0.07136128]
[1773172816520,0.03501936,70088.0,70067.0,0.00469887]
[1773172816766,0.03501936,70088.0,70067.0,0.00455153]
[1773172816941,0.03501936,70088.0,70067.0,0.0044042]
[1773172817551,0.00022001,70075.0,70067.0,0.0044042]
[1773172818368,0.00022001,70075.0,70069.0,0.07135823]
[1773172818927,0.00022001,70075.0,70068.0,0.07135823]
[1773172819204,0.06935446,70079.0,70069.0,0.00148]
[1773172819380,0.00486504,70079.0,70070.0,0.00133263]
[1773172819735,0.01945192,70078.0,70067.0,0.00148]
[1773172819885,0.00486504,70076.0,70067.0,0.00148]
[1773172820520,0.03,70077.0,70067.0,0.00148]
[1773172820521,0.03,70077.0,70067.0,0.07283992]
[1773172820899,0.00486504,70079.0,70067.0,0.07283992]
[1773172821100,0.00486504,70078.0,70068.0,0.00148]
[1773172821325,0.00486504,70078.0,70069.0,0.00148]
[1773172822279,0.00486504,70077.0,70068.0,0.00148]
[1773172822584,0.00486504,70077.0,70064.0,0.07136264]
[1773172822738,0.00486504,70075.0,70051.0,0.07137656]
[1773172822928,0.00523934,70075.0,70048.0,0.07137758]
[1773172823133,0.00486504,70068.0,70046.0,0.00148]
[1773172823336,0.00486504,70066.0,70046.0,0.00148]
[1773172824647,0.00486504,70063.0,70046.0,0.00148]
[1773172824864,0.00486504,70063.0,70047.0,0.07138064]
[1773172825064,0.00486504,70063.0,70047.0,0.07625459]
[1773172825296,0.00486504,70063.0,70048.0,0.00487395]
[1773172825503,0.00321403,70063.0,70048.0,0.00487395]
[1773172826264,0.00321403,70063.0,70048.0,0.00472658]
[1773172827186,0.00321403,70063.0,70049.0,0.0713786]
[1773172828789,0.03321403,70063.0,70049.0,0.0713786]
[1773172829638,0.03,70063.0,70050.0,0.00487395]
[1773172829803,0.03,70062.0,70049.0,0.0713786]
[1773172830003,0.03486504,70062.0,70049.0,0.0713786]
[1773172830791,0.03,70061.0,70049.0,0.0713786]
[1773172831536,0.03,70061.0,70049.0,0.07645255]
[1773172831960,0.03,70060.0,70049.0,0.07645255]
[1773172832940,0.00486504,70064.0,70049.0,0.07645255]
[1773172833759,0.03,70065.0,70050.0,0.00487395]
[1773172833963,0.00486504,70069.0,70051.0,0.07137656]
[1773172834170,0.00148,70071.0,70052.0,0.00487395]
[1773172834391,0.00486504,70070.0,70053.0,0.00148]
[1773172834573,0.00486504,70070.0,70054.0,0.00487395]
[1773172835445,0.00486504,70070.0,70054.0,0.0047266]
[1773172837097,0.00486504,70070.0,70055.0,0.07137249]
[1773172839105,0.00486504,70070.0,70055.0,0.07624644]
[1773172839849,0.00486504,70070.0,70056.0,0.00472658]
[1773172841326,0.00486504,70070.0,70057.0,0.07137045]
[1773172845199,0.03,70070.0,70057.0,0.07137045]
[1773172845442,0.00546445,70069.0,70057.0,0.07137045]
[1773172845639,0.03,70070.0,70058.0,0.04869915]
[1773172845948,0.03,70070.0,70059.0,0.00547237]
[1773172846308,0.03,70069.0,70060.0,0.00148]
[1773172846606,0.00082431,70075.0,70061.0,0.00547237]
[1773172847050,0.07217683,70075.0,70061.0,0.00547237]
[1773172847512,0.00082431,70075.0,70063.0,0.00547237]
[1773172848165,0.00022001,70071.0,70063.0,0.00547237]
[1773172848767,0.03022001,70079.0,70063.0,0.00547237]
[1773172848950,0.03022001,70079.0,70063.0,0.00584667]
[1773172849351,0.03,70078.0,70065.0,0.00628115]
[1773172849573,0.03,70078.0,70067.0,0.00628115]
[1773172850158,0.00022001,70085.0,70067.0,0.00628115]
[1773172850353,0.00022001,70087.0,70067.0,0.00628115]
[1773172850750,0.00597076,70085.0,70067.0,0.00628115]
[1773172850957,0.00597076,70085.0,70063.0,0.0003743]
[1773172851165,0.00597076,70085.0,70064.0,0.00148]
[1773172851762,0.00597076,70082.0,70064.0,0.07284321]
[1773172852068,0.03,70083.0,70065.0,0.00148]
[1773172852069,0.00597076,70080.0,70065.0,0.00148]
[1773172853868,0.03,70074.0,70064.0,0.07136312]
[1773172854106,0.03,70070.0,70065.0,0.00148]
[1773172854418,0.03964361,70068.0,70065.0,0.00148]
[1773172854619,0.03,70068.0,70065.0,0.00148]
[1773172855353,0.07134764,70080.0,70065.0,0.00148]
[1773172855622,0.00964361,70086.0,70065.0,0.00148]
[1773172855974,0.00964361,70086.0,70066.0,0.07136128]
[1773172855975,0.00964361,70085.0,70066.0,0.07136128]
[1773172856346,0.03,70084.0,70066.0,0.07136128]
[1773172856522,0.03,70080.0,70066.0,0.07136128]
[1773172856679,0.03,70078.0,70066.0,0.07136128]
[1773172856884,0.03964361,70078.0,70067.0,0.00148]
[1773172857107,0.03964361,70078.0,70066.0,0.07136128]
[1773172857314,0.03964361,70078.0,70067.0,0.00148]
[1773172857965,0.03964361,70078.0,70068.0,0.07135925]
[1773172858460,0.00597076,70079.0,70069.0,0.00148]
[1773172860502,0.00597076,70079.0,70069.0,0.00133266]
[1773172861233,0.00597076,70079.0,70068.0,0.07135872]
[1773172863283,0.03022001,70080.0,70068.0,0.07135872]
[1773172863630,0.00033581,70088.0,70069.0,0.00628115]
[1773172863836,0.00033581,70088.0,70069.0,0.00613381]
[1773172864044,0.03033581,70088.0,70069.0,0.00598648]
[1773172864249,0.00022001,70079.0,70069.0,0.00598648]
[1773172864929,0.00022001,70079.0,70070.0,0.07135721]
[1773172865146,0.00022001,70079.0,70070.0,0.07283721]
[1773172867232,0.03033581,70088.0,70071.0,0.00628115]
[1773172867977,0.03033581,70088.0,70071.0,0.00613384]
[1773172868110,0.00597076,70086.0,70071.0,0.00613384]
[1773172869130,0.00597076,70086.0,70072.0,0.07135517]
[1773172870454,0.00597076,70086.0,70073.0,0.00148]
[1773172870855,0.00597076,70086.0,70074.0,0.00148]
[1773172871061,0.00619077,70086.0,70075.0,0.07135212]
[1773172871446,0.00022001,70086.0,70076.0,0.00148]
[1773172871644,0.00022001,70090.0,70076.0,0.00148]
[1773172871859,0.00022001,70101.0,70081.0,0.00628115]
[1773172872069,0.00631246,70107.0,70081.0,0.00628115]
[1773172872070,0.0003417,70107.0,70081.0,0.00613382]
[1773172872293,0.07130976,70117.0,70080.0,0.16309077]
[1773172872294,0.00597076,70114.0,70082.0,0.00148]
[1773172872472,0.00597076,70114.0,70083.0,0.00628115]
[1773172872675,0.00597076,70114.0,70084.0,0.00148]
[1773172872989,0.00597076,70113.0,70085.0,0.00776115]
[1773172873190,0.00597076,70113.0,70087.0,0.00628115]
[1773172873514,0.00615646,70113.0,70087.0,0.00628115]
[1773172873731,0.0301857,70113.0,70087.0,0.00628115]
[1773172873897,0.00597076,70112.0,70087.0,0.00628115]
[1773172874098,0.00608309,70112.0,70087.0,0.00628115]
[1773172874352,0.00626879,70112.0,70087.0,0.00628115]
[1773172875054,0.03029803,70112.0,70087.0,0.00628115]
[1773172875255,0.00597076,70108.0,70089.0,0.00628115]
[1773172875457,0.00597076,70108.0,70090.0,0.00148]
[1773172875819,0.00597076,70108.0,70089.0,0.00628115]
[1773172876008,0.00597076,70108.0,70090.0,0.00148]
[1773172876407,0.00615646,70108.0,70089.0,0.00628115]
[1773172876616,0.00615646,70108.0,70090.0,0.00148]
[1773172877033,0.00615646,70108.0,70089.0,0.00628115]
[1773172877230,0.0301857,70108.0,70092.0,0.07133481]
[1773172877447,0.00597076,70107.0,70092.0,0.07133481]
[1773172877642,0.00597076,70107.0,70093.0,0.00148]
[1773172878578,0.00597076,70105.0,70094.0,0.00148]
[1773172879134,0.00597076,70105.0,70091.0,0.00148]
[1773172879403,0.00597076,70105.0,70071.0,0.07135526]
[1773172879404,0.00739847,70102.0,70081.0,0.07134591]
[1773172879731,0.00739847,70100.0,70082.0,0.00148]
[1773172880241,0.00691847,70100.0,70082.0,0.00148]
[1773172881665,0.00739847,70098.0,70083.0,0.07134397]
[1773172882723,0.00739847,70097.0,70083.0,0.07134397]
[1773172883078,0.00739847,70097.0,70084.0,0.00148]
[1773172883949,0.00739847,70097.0,70085.0,0.07134194]
[1773172884096,0.00739847,70097.0,70085.0,0.07119463]
[1773172887431,0.03,70100.0,70086.0,0.00751796]
[1773172887769,0.03,70100.0,70086.0,0.00737066]
[1773172888131,0.00022001,70102.0,70087.0,0.0713399]
[1773172888333,0.00022001,70102.0,70087.0,0.07885786]
[1773172888964,0.00022001,70102.0,70087.0,0.0713399]
[1773172889163,0.00022001,70102.0,70088.0,0.00751796]
[1773172889800,0.03,70101.0,70086.0,0.0713399]
[1773172889998,0.00739847,70100.0,70089.0,0.00148]
[1773172890340,0.00739847,70100.0,70089.0,0.07281686]
[1773172890542,0.00739847,70100.0,70089.0,0.07133686]
[1773172890786,0.03,70100.0,70089.0,0.07133686]
[1773172890993,0.00739847,70099.0,70089.0,0.07133686]
[1773172891190,0.00739847,70099.0,70088.0,0.07301843]
[1773172891757,0.00739847,70099.0,70088.0,0.07287112]
[1773172892053,0.00739847,70099.0,70088.0,0.07272382]
[1773172892054,0.00739847,70098.0,70088.0,0.07272382]
[1773172892779,0.00739847,70098.0,70088.0,0.00153271]
[1773172892963,0.03739847,70098.0,70088.0,0.00153271]
[1773172893346,0.00739847,70097.0,70088.0,5.271e-05]
[1773172893860,0.03,70097.0,70088.0,5.271e-05]
[1773172894208,0.00739847,70096.0,70088.0,5.271e-05]
[1773172895052,0.03739847,70096.0,70088.0,5.271e-05]
[1773172895445,0.00739847,70095.0,70088.0,5.271e-05]
[1773172896640,0.00739847,70097.0,70088.0,5.271e-05]
[1773172897071,0.03739847,70097.0,70088.0,5.271e-05]
[1773172898075,0.00739847,70097.0,70088.0,5.271e-05]
[1773172899781,0.03,70096.0,70088.0,5.271e-05]
[1773172899934,0.00739847,70095.0,70080.0,0.07134678]
[1773172900134,0.00739847,70095.0,70081.0,0.00168]
[1773172900940,0.00739847,70093.0,70081.0,0.0002]
[1773172902107,0.00739847,70093.0,70082.0,0.00148]
[1773172904119,0.03,70092.0,70082.0,0.00148]
[1773172905580,0.03739847,70092.0,70082.0,0.00148]
[1773172907405,0.03,70091.0,70082.0,0.00148]
[1773172908491,0.03739847,70092.0,70082.0,0.00148]
[1773172909388,0.00739847,70092.0,70082.0,0.00148]
[1773172910438,0.10133381,70093.0,70082.0,0.00148]
[1773172911641,0.03,70093.0,70082.0,0.00148]
[1773172913343,0.10133385,70093.0,70082.0,0.00148]
[1773172914088,0.00016619,70092.0,70081.0,0.0002]
[1773172914461,8.096e-05,70091.0,70081.0,0.0002]
[1773172914997,8.096e-05,70091.0,70075.0,0.00023]
[1773172915149,8.096e-05,70089.0,70075.0,0.00023]
[1773172915942,0.0001614,70087.0,70075.0,0.00023]
[1773172917907,0.0011614,70087.0,70075.0,0.00023]
[1773172918400,0.03,70085.0,70075.0,0.00023]
[1773172918607,0.00022001,70092.0,70077.0,0.01036381]
[1773172919351,0.03022001,70096.0,70077.0,0.01036381]
[1773172919589,0.001,70085.0,70077.0,0.01036381]
[1773172919779,0.10155094,70096.0,70077.0,0.01036381]
[1773172920107,0.10155094,70096.0,70080.0,0.07134703]
[1773172920457,0.00022001,70096.0,70081.0,0.01036381]
[1773172921989,0.03022001,70096.0,70081.0,0.01036381]
[1773172922262,0.1015511,70096.0,70081.0,0.01036381]
[1773172922441,0.1015511,70096.0,70081.0,0.08170956]
[1773172922643,0.1015511,70096.0,70081.0,0.0817093]
[1773172922845,0.1015511,70096.0,70082.0,0.01051565]
[1773172923243,7.021e-05,70095.0,70076.0,0.00148]
[1773172923490,7.021e-05,70095.0,70072.0,0.01051565]
[1773172923491,7.021e-05,70095.0,70075.0,0.00171]
[1773172923664,0.00013915,70088.0,70075.0,0.00171]
[1773172923848,0.00013915,70088.0,70075.0,0.00023]
[1773172924043,0.00013915,70088.0,70081.0,0.0002]
[1773172924880,0.03,70087.0,70081.0,0.0002]
[1773172926086,0.03,70086.0,70081.0,0.0002]
[1773172926689,0.00148,70089.0,70082.0,0.07134499]
[1773172926910,0.07303101,70096.0,70083.0,0.0106523]
[1773172927131,0.03,70095.0,70083.0,0.0106523]
[1773172929007,0.03,70095.0,70075.0,0.00171]
[1773172929008,6.284e-05,70092.0,70075.0,0.00171]
[1773172929218,6.284e-05,70092.0,70075.0,0.00023]
[1773172930166,0.0001245,70081.0,70066.0,0.0019251]
[1773172930697,0.0001245,70081.0,70066.0,0.0004451]
[1773172930897,0.0001245,70081.0,70067.0,0.00148]
[1773172931125,0.03,70080.0,70066.0,0.0019251]
[1773172931523,0.00012351,70079.0,70066.0,0.0004451]
[1773172931784,0.00018759,70079.0,70066.0,0.0004451]
[1773172931992,0.03006408,70079.0,70068.0,0.01077919]
[1773172932409,0.03006408,70079.0,70073.0,0.0002]
[1773172933230,0.03,70078.0,70073.0,0.0002]
[1773172933439,0.03,70078.0,70073.0,0.00980416]
[1773172933615,6.408e-05,70079.0,70073.0,0.0002]
[1773172935059,0.00148,70086.0,70074.0,0.07135294]
[1773172935261,0.07155206,70095.0,70075.0,0.0124291]
[1773172935262,0.00022001,70095.0,70075.0,0.0124291]
[1773172935438,0.00148,70090.0,70075.0,0.0124291]
[1773172937375,0.00148,70091.0,70077.0,0.01100429]
[1773172937806,0.10133488,70092.0,70077.0,0.01100429]
[1773172938085,0.03,70090.0,70077.0,0.01100429]
[1773172938298,0.10133701,70090.0,70077.0,0.01100429]
[1773172938649,0.03,70088.0,70073.0,0.0002]
[1773172938848,5.143e-05,70087.0,70073.0,0.0002]
[1773172939055,5.143e-05,70087.0,70066.0,0.08262199]
[1773172939248,0.00010183,70085.0,70066.0,0.08299629]
[1773172939755,0.00148,70084.0,70066.0,0.08299629]
[1773172939884,0.00168051,70084.0,70067.0,0.00148]
[1773172940079,0.00168051,70084.0,70067.0,0.01254072]
[1773172940279,0.00148,70084.0,70067.0,0.01254072]
[1773172941127,0.03,70086.0,70067.0,0.01254072]
[1773172941355,0.03,70081.0,70068.0,0.01116098]
[1773172942530,0.03,70080.0,70068.0,0.01116098]
[1773172943552,0.03,70081.0,70068.0,0.01116098]
[1773172944756,0.03,70081.0,70068.0,0.0713591]
[1773172944915,0.03,70080.0,70069.0,0.01125493]
[1773172946341,0.03,70082.0,70069.0,0.01125493]
[1773172946855,0.10134552,70082.0,70069.0,0.01125493]
[1773172947089,0.10282552,70082.0,70069.0,0.01125493]
[1773172948794,0.10282552,70082.0,70069.0,0.01145493]
[1773172948995,0.10282552,70082.0,70069.0,0.0002]
[1773172949307,0.10286611,70082.0,70069.0,0.0002]
[1773172950552,0.10282552,70082.0,70069.0,0.01158091]
[1773172951901,0.03148,70082.0,70069.0,0.08293903]
[1773172952103,0.03148,70082.0,70069.0,0.01158091]
[1773172952104,0.10282516,70082.0,70069.0,0.01158091]
[1773172952490,0.10134516,70082.0,70069.0,0.01158091]
[1773172952645,0.00148,70081.0,70069.0,0.01158091]
[1773172954459,0.03,70078.0,70069.0,0.0002]
[1773172955909,0.03,70080.0,70069.0,0.0002]
[1773172956108,0.03,70078.0,70069.0,0.0002]
[1773172956664,0.03,70076.0,70069.0,0.0002]
[1773172956841,0.03,70072.0,70069.0,0.0002]
[1773172957051,0.04149084,70070.0,70069.0,0.0002]
[1773172958556,0.03,70078.0,70069.0,0.0002]
[1773172958755,0.01152413,70073.0,70069.0,0.0002]
[1773172958934,0.03,70072.0,70069.0,0.0002]
[1773172959541,0.03,70070.0,70069.0,0.0002]
[1773172959742,0.04152413,70070.0,70069.0,0.0002]
[1773172959914,0.03,70070.0,70069.0,0.0002]
[1773172960826,0.07135136,70076.0,70061.0,0.0002]
[1773172960827,0.03,70066.0,70061.0,0.0002]
[1773172961035,0.03,70062.0,70061.0,0.0002]
[1773172961256,0.04155581,70062.0,70061.0,0.0002]
[1773172961457,0.04155581,70062.0,70055.0,0.0002]
[1773172961458,0.04155581,70062.0,70055.0,0.00168]
[1773172963038,0.04155581,70062.0,70055.0,0.07305211]
[1773172963216,0.01196232,70066.0,70056.0,0.07137131]
[1773172963431,0.01196232,70066.0,70056.0,0.07137055]
[1773172964042,0.01196232,70066.0,70055.0,0.00168]
[1773172964287,0.03,70065.0,70055.0,0.00168]
[1773172964486,0.04158806,70065.0,70055.0,0.00168]
[1773172964690,0.03,70065.0,70055.0,0.07305236]
[1773172965000,0.03,70065.0,70055.0,0.0002]
[1773172965178,0.03,70064.0,70055.0,0.00168]
[1773172965936,0.03,70064.0,70055.0,0.07305197]
[1773172966117,0.03,70064.0,70056.0,0.07137144]
[1773172966321,0.00037426,70066.0,70057.0,0.07136943]
[1773172966524,0.07135539,70072.0,70058.0,0.07156924]
[1773172966726,0.01312415,70071.0,70058.0,0.0719435]
[1773172967364,0.03,70070.0,70058.0,0.0719435]
[1773172967568,0.04164415,70070.0,70058.0,0.0719435]
[1773172968150,0.03,70070.0,70058.0,0.0719435]
[1773172968292,0.03,70069.0,70058.0,0.0719435]
[1773172969428,0.03148,70072.0,70058.0,0.0719435]
[1773172970029,0.03,70070.0,70058.0,0.00057426]
[1773172970345,0.03,70070.0,70058.0,0.07194348]
[1773172970498,0.03,70068.0,70058.0,0.00057426]
[1773172970699,0.04176338,70068.0,70058.0,0.00057426]
[1773172974127,0.04176338,70068.0,70058.0,0.07194349]
[1773172974667,0.00148,70072.0,70058.0,0.07194349]
[1773172975079,0.00148,70073.0,70058.0,0.07194349]